[Event "ESP-chT Div I 2018"]
[Site "Linares"]
[Date "2018.08.11"]
[Round "6"]
[White "Martin Duque, Jesus"]
[Black "Vergara Anton, Diego"]
[Result "1-0"]
[ECO "C11"]
[WhiteElo "2378"]
[BlackElo "2022"]
[Annotator "NA"]
[PlyCount "85"]
[EventDate "2018.08.06"]
[EventType "team-tourn"]
[EventCountry "ESP"]
[SourceTitle "playchess.com"]
[Source "ChessBase"]
[SourceQuality "1"]
[TimeControl "40/5400+30:1800+30"]

1. e4 {[%emt 0:00:00]} e6 {[%emt 0:00:07]} 2. d4 {[%emt 0:00:00]} d5 {[%emt 0:00:15]} 3. Nc3 {[%emt 0:00:00]} Nf6 4. e5 {[%emt 0:00:00]} Nfd7 {[%emt 0:00:29]} 5. f4 {[%emt 0:00:00]} c5 {[%emt 0:00:28]} 6. Nce2 {[%emt 0:00:03]} cxd4 {[%emt 0:03:00]} 7. Nxd4 {[%emt 0:00:34]} Nc6 {[%emt 0:00:57]} 8. Ngf3 {[%emt 0:01:50]} Bc5 {[%emt 0:03:26]} 9. c3 {[%emt 0:00:11]} Qb6 {[%emt 0:00:38]} 10. g3 {[%emt 0:05:55]} Nxd4 {[%emt 0:02:00]} 11. cxd4 {[%emt 0:00:14]} Be7 {[%emt 0:00:54]} 12. Bd3 {[%emt 0:00:38]} f5 {[%emt 0:05:54]} 13. O-O {[%emt 0:05:13]} O-O {[%emt 0:00:32]} 14. Rf2 {[%emt 0:00:30]} Nb8 {[%emt 0:04:18]} 15. Be3 {[%emt 0:00:59]} Nc6 {[%emt 0:00:21]} 16. h3 {[%emt 0:02:42]} Kh8 {[%emt 0:04:42]} 17. g4 {[%emt 0:01:53]} g6 {[%emt 0:02:35]} 18. Kh1 {[%emt 0:05:16]} Bd7 {[%emt 0:01:46]} 19. Rg2 {[%emt 0:01:54]} Rg8 {[%emt 0:02:06]} 20. Qd2 {[%emt 0:01:41]} Nb4 {[%emt 0:04:06]} 21. Bb1 {[%emt 0:01:40]} Rac8 {[%emt 0:10:05]} 22. a3 {[%emt 0:04:27]} Nc6 {[%emt 0:00:54]} 23. Ba2 {[%emt 0:00:27]} Na5 {[%emt 0:00:49]} 24. gxf5 {[%emt 0:03:41]} gxf5 {[%emt 0:01:12]} 25. Rag1 {[%emt 0:01:45]} Bb5 {[%emt 0:09:35]} 26. Ng5 {[%emt 0:15:01]} Bxg5 {[%emt 0:00:57]} 27. fxg5 {[%emt 0:00:02]} Be8 {[%emt 0:01:27]} 28. g6 {[%emt 0:01:09]} Rxg6 {[%emt 0:02:00]} 29. Bg5 {[%emt 0:02:01]} Qc7 {[%emt 0:07:40]} 30. b4 {[%emt 0:07:22]} Nc6 {[%emt 0:03:58]} 31. Bf6+ {[%emt 0:00:52]} Kg8 {[%emt 0:00:21]} 32. h4 {[%emt 0:00:32]} Nxd4 {[%emt 0:10:39]} 33. h5 {[%emt 0:06:20]} Nf3 {[%emt 0:06:34]} 34. Qh6 {[%emt 0:00:35]} Rxg2 {[%emt 0:01:46]} 35. Rxg2+ {[%emt 0:00:07]} Bg6 {[%emt 0:00:10]} 36. Rxg6+ {[%emt 0:02:45]} hxg6 {[%emt 0:00:41]} 37. Qh8+ {[%emt 0:00:04]} Kf7 {[%emt 0:00:43]} 38. Qg7+ {[%emt 0:00:05]} Ke8 {[%emt 0:00:42]} 39. Qg8+ {[%emt 0:00:04]} Kd7 {[%emt 0:00:24]} 40. Qf7+ {[%emt 0:00:07]} Kc6 {[%emt 0:00:10]} 41. Qxe6+ {[%emt 0:30:06]} Kb5 {[%emt 0:30:13]} 42. Qxd5+ {[%emt 0:00:19]} Ka6 {[%emt 0:04:02]} 43. Bc4+ {[%emt 0:00:19]} 1-0

[Event "ESP-chT Div I 2018"]
[Site "Linares"]
[Date "2018.08.11"]
[Round "6"]
[White "Ortega Hermida, Daniel"]
[Black "Almagro Llamas, Pablo"]
[Result "0-1"]
[ECO "B90"]
[WhiteElo "2334"]
[BlackElo "2442"]
[Annotator "NA"]
[PlyCount "120"]
[EventDate "2018.08.06"]
[EventType "team-tourn"]
[EventCountry "ESP"]
[SourceTitle "playchess.com"]
[Source "ChessBase"]
[SourceQuality "1"]
[TimeControl "40/5400+30:1800+30"]

1. e4 {[%emt 0:00:00]} c5 {[%emt 0:00:00]} 2. Nf3 {[%emt 0:00:00]} d6 {[%emt 0:00:03]} 3. d4 {[%emt 0:00:16]} cxd4 {[%emt 0:00:12]} 4. Nxd4 {[%emt 0:00:08]} Nf6 {[%emt 0:00:14]} 5. Nc3 {[%emt 0:00:16]} a6 {[%emt 0:00:42]} 6. Be3 {[%emt 0:01:04]} e6 {[%emt 0:01:17]} 7. f3 {[%emt 0:01:04]} b5 {[%emt 0:00:39]} 8. Qd2 {[%emt 0:01:24]} Nbd7 {[%emt 0:00:26]} 9. g4 {[%emt 0:05:33]} Nb6 {[%emt 0:02:04]} 10. a4 Nc4 {[%emt 0:10:20]} 11. Bxc4 {[%emt 0:03:51]} bxc4 {[%emt 0:00:07]} 12. a5 {[%emt 0:00:07]} Qc7 {[%emt 0:07:20]} 13. Nde2 {[%emt 0:08:50]} Nd7 {[%emt 0:09:25]} 14. Na4 {[%emt 0:07:03]} Bb7 {[%emt 0:02:51]} 15. Nb6 {[%emt 0:05:10]} Nxb6 {[%emt 0:02:47]} 16. Bxb6 {[%emt 0:00:30]} Qd7 {[%emt 0:00:34]} 17. h4 {[%emt 0:11:13]} Be7 {[%emt 0:03:23]} 18. O-O-O {[%emt 0:04:05]} O-O {[%emt 0:05:52]} 19. Nc3 {[%emt 0:05:24]} f5 {[%emt 0:18:07]} 20. gxf5 {[%emt 0:07:29]} exf5 {[%emt 0:00:06]} 21. Rhg1 {[%emt 0:00:58]} fxe4 {[%emt 0:01:48]} 22. fxe4 {[%emt 0:03:41]} Bxh4 {[%emt 0:04:15]} 23. e5 {[%emt 0:08:30]} Bf3 {[%emt 0:05:37]} 24. Rdf1 {[%emt 0:01:45]} Bg4 {[%emt 0:09:33]} 25. Qd5+ {[%emt 0:05:49]} Be6 {[%emt 0:04:11]} 26. Qe4 {[%emt 0:01:08]} Rxf1+ {[%emt 0:00:41]} 27. Rxf1 {[%emt 0:00:06]} Bg5+ {[%emt 0:00:05]} 28. Kb1 {[%emt 0:00:16]} d5 {[%emt 0:00:14]} 29. Qf3 {[%emt 0:01:02]} Re8 {[%emt 0:01:09]} 30. Bc5 {[%emt 0:02:34]} h6 {[%emt 0:02:39]} 31. Bd6 {[%emt 0:01:51]} d4 {[%emt 0:03:57]} 32. Ne4 {[%emt 0:00:25]} c3 {[%emt 0:00:54]} 33. Nc5 {[%emt 0:01:01]} Qb5 {[%emt 0:02:13]} 34. b3 {[%emt 0:02:44]} Bc4 {[%emt 0:00:15]} 35. Rd1 {[%emt 0:03:57]} d3 {[%emt 0:00:37]} 36. Rxd3 {[%emt 0:02:35]} Bxd3 {[%emt 0:00:07]} 37. Nxd3 {[%emt 0:00:04]} Qxa5 {[%emt 0:00:48]} 38. Qc6 {[%emt 0:00:22]} Qb5 {[%emt 0:01:00]} 39. Qxc3 {[%emt 0:00:09]} a5 {[%emt 0:00:50]} 40. Qd4 {[%emt 0:01:17]} Qc6 {[%emt 0:01:03]} 41. Qg4 {[%emt 0:31:34]} Qc8 {[%emt 0:31:30]} 42. Qg2 {[%emt 0:01:16]} Qc3 {[%emt 0:00:32]} 43. Qd5+ {[%emt 0:03:10]} Kh8 {[%emt 0:00:04]} 44. Nc5 {[%emt 0:00:44]} Qd2 {[%emt 0:00:26]} 45. Qe4 {[%emt 0:01:30]} a4 {[%emt 0:00:26]} 46. bxa4 {[%emt 0:00:20]} Be3 {[%emt 0:00:28]} 47. Nd3 {[%emt 0:00:37]} Rc8 {[%emt 0:00:36]} 48. Nb4 {[%emt 0:00:28]} Bd4 {[%emt 0:00:32]} 49. Na2 {[%emt 0:00:35]} Qd1+ {[%emt 0:00:45]} 50. Nc1 {[%emt 0:00:06]} Be3 {[%emt 0:00:37]} 51. Qxe3 {[%emt 0:00:53]} Qxc2+ {[%emt 0:00:06]} 52. Ka1 {[%emt 0:00:07]} Qxc1+ {[%emt 0:00:28]} 53. Qxc1 {[%emt 0:00:05]} Rxc1+ {[%emt 0:00:04]} 54. Kb2 {[%emt 0:00:03]} Rc8 {[%emt 0:00:16]} 55. Kb3 {[%emt 0:00:22]} Kg8 {[%emt 0:00:24]} 56. a5 {[%emt 0:00:44]} Kf7 {[%emt 0:00:07]} 57. Kb4 {[%emt 0:00:17]} h5 {[%emt 0:00:27]} 58. a6 {[%emt 0:00:12]} h4 {[%emt 0:00:15]} 59. Kb5 {[%emt 0:01:08]} Ke6 {[%emt 0:00:25]} 60. a7 {[%emt 0:00:21]} Ra8 {[%emt 0:00:11]} 0-1

[Event "ESP-chT Div I 2018"]
[Site "Linares"]
[Date "2018.08.11"]
[Round "6"]
[White "Rodriguez Fontecha, Marcos"]
[Black "Granero Roca, Antonio"]
[Result "0-1"]
[ECO "A48"]
[WhiteElo "2329"]
[BlackElo "2383"]
[Annotator "NA"]
[PlyCount "78"]
[EventDate "2018.08.06"]
[EventType "team-tourn"]
[EventCountry "ESP"]
[SourceTitle "playchess.com"]
[Source "ChessBase"]
[SourceQuality "1"]
[TimeControl "40/5400+30:1800+30"]

1. d4 {[%emt 0:00:00]} Nf6 {[%emt 0:00:19]} 2. Nf3 {[%emt 0:00:00]} g6 {[%emt 0:00:28]} 3. Bg5 {[%emt 0:00:00]} Bg7 {[%emt 0:00:19]} 4. c3 {[%emt 0:00:10]} O-O {[%emt 0:01:14]} 5. Nbd2 {[%emt 0:00:05]} d5 {[%emt 0:00:20]} 6. e3 {[%emt 0:00:26]} c6 {[%emt 0:00:32]} 7. Be2 {[%emt 0:00:19]} a5 {[%emt 0:00:27]} 8. O-O {[%emt 0:02:19]} Nbd7 {[%emt 0:01:02]} 9. b4 {[%emt 0:03:15]} Re8 {[%emt 0:01:23]} 10. Qc2 {[%emt 0:05:49]} h6 {[%emt 0:02:47]} 11. Bh4 {[%emt 0:00:51]} e5 {[%emt 0:02:20]} 12. b5 {[%emt 0:05:35]} e4 {[%emt 0:01:44]} 13. bxc6 {[%emt 0:05:22]} bxc6 {[%emt 0:01:55]} 14. Ne1 {[%emt 0:00:03]} Nf8 {[%emt 0:03:58]} 15. c4 {[%emt 0:07:56]} Ba6 {[%emt 0:03:04]} 16. Qa4 {[%emt 0:04:56]} Qd7 {[%emt 0:04:05]} 17. Nb3 {[%emt 0:03:05]} Ne6 {[%emt 0:01:38]} 18. Nc2 {[%emt 0:03:34]} c5 {[%emt 0:03:23]} 19. Qxd7 {[%emt 0:09:05]} Nxd7 {[%emt 0:00:29]} 20. Nxa5 {[%emt 0:00:03]} cxd4 {[%emt 0:02:07]} 21. exd4 {[%emt 0:14:04]} Nf4 {[%emt 0:02:35]} 22. Rfe1 {[%emt 0:01:26]} Nb6 {[%emt 0:07:23]} 23. Bf1 {[%emt 0:03:11]} Nxc4 {[%emt 0:00:47]} 24. Nb3 {[%emt 0:06:15]} Ne6 {[%emt 0:01:26]} 25. f3 {[%emt 0:03:57]} exf3 {[%emt 0:05:12]} 26. gxf3 {[%emt 0:00:53]} Na3 {[%emt 0:00:38]} 27. Nb4 {[%emt 0:04:42]} Bxf1 {[%emt 0:00:17]} 28. Kxf1 {[%emt 0:00:44]} Ra4 {[%emt 0:02:28]} 29. Nxd5 {[%emt 0:04:04]} Nc2 {[%emt 0:01:40]} 30. Nf6+ {[%emt 0:03:58]} Bxf6 {[%emt 0:00:21]} 31. Bxf6 {[%emt 0:00:03]} Nxa1 {[%emt 0:00:19]} 32. Rxa1 {[%emt 0:01:16]} Nf4 {[%emt 0:01:00]} 33. a3 {[%emt 0:01:50]} Re3 {[%emt 0:01:44]} 34. Nd2 {[%emt 0:01:06]} Nd5 {[%emt 0:00:40]} 35. Be5 {[%emt 0:00:50]} f6 {[%emt 0:00:24]} 36. Bd6 {[%emt 0:01:34]} Rxd4 {[%emt 0:00:52]} 37. Rd1 {[%emt 0:03:15]} Red3 {[%emt 0:01:59]} 38. Ke1 {[%emt 0:00:16]} Nc3 {[%emt 0:00:16]} 39. Bc5 {[%emt 0:00:04]} Rd5 {[%emt 0:00:09]} 0-1

[Event "ESP-chT Div I 2018"]
[Site "Linares"]
[Date "2018.08.11"]
[Round "6"]
[White "Cano Sanchez, Josue"]
[Black "Perez Lopez, Jesus Maria"]
[Result "1-0"]
[ECO "D02"]
[WhiteElo "2312"]
[BlackElo "2272"]
[Annotator "NA"]
[PlyCount "94"]
[EventDate "2018.08.06"]
[EventType "team-tourn"]
[EventCountry "ESP"]
[SourceTitle "playchess.com"]
[Source "ChessBase"]
[SourceQuality "1"]
[TimeControl "40/5400+30:1800+30"]

1. d4 {[%emt 0:00:34]} d5 {[%emt 0:03:38]} 2. Nf3 {[%emt 0:02:23]} c6 {[%emt 0:00:46]} 3. c3 {[%emt 0:01:59]} Bf5 {[%emt 0:02:56]} 4. Bf4 {[%emt 0:00:33]} e6 {[%emt 0:03:46]} 5. Qb3 {[%emt 0:00:49]} Qb6 {[%emt 0:00:50]} 6. Nbd2 {[%emt 0:00:35]} Nd7 {[%emt 0:12:00]} 7. e3 {[%emt 0:00:34]} h6 {[%emt 0:10:51]} 8. Be2 {[%emt 0:01:21]} Ngf6 {[%emt 0:00:50]} 9. h3 {[%emt 0:01:48]} a5 {[%emt 0:05:58]} 10. a4 {[%emt 0:06:55]} Ne4 {[%emt 0:04:50]} 11. Qxb6 {[%emt 0:04:05]} Nxb6 {[%emt 0:00:05]} 12. Bc7 {[%emt 0:00:22]} Nxd2 {[%emt 0:02:17]} 13. Nxd2 {[%emt 0:00:26]} Nc8 {[%emt 0:00:22]} 14. Nb3 {[%emt 0:10:29]} Bd6 {[%emt 0:07:06]} 15. Bxd6 {[%emt 0:00:16]} Nxd6 {[%emt 0:00:04]} 16. Nc1 {[%emt 0:00:26]} Ke7 {[%emt 0:02:03]} 17. Bd3 {[%emt 0:00:13]} Rhc8 {[%emt 0:07:22]} 18. Bxf5 {[%emt 0:00:34]} Nxf5 {[%emt 0:00:03]} 19. Nd3 {[%emt 0:00:10]} Nd6 {[%emt 0:02:43]} 20. Ke2 {[%emt 0:00:51]} b6 {[%emt 0:00:23]} 21. Rhd1 {[%emt 0:09:12]} c5 {[%emt 0:04:58]} 22. Ra2 {[%emt 0:01:31]} c4 {[%emt 0:07:16]} 23. Ne1 {[%emt 0:00:34]} Rcb8 {[%emt 0:00:20]} 24. Nf3 {[%emt 0:01:25]} f6 {[%emt 0:00:31]} 25. Nd2 {[%emt 0:00:34]} b5 {[%emt 0:02:10]} 26. axb5 {[%emt 0:00:06]} Rxb5 {[%emt 0:00:02]} 27. Rb1 {[%emt 0:00:51]} g5 {[%emt 0:00:54]} 28. Kd1 {[%emt 0:00:22]} e5 {[%emt 0:02:46]} 29. Kc2 {[%emt 0:00:18]} Ke6 {[%emt 0:02:04]} 30. Ra4 {[%emt 0:01:32]} Rab8 {[%emt 0:00:30]} 31. dxe5 {[%emt 0:07:30]} fxe5 {[%emt 0:00:06]} 32. e4 {[%emt 0:00:07]} Rf8 {[%emt 0:06:37]} 33. exd5+ {[%emt 0:00:15]} Kxd5 {[%emt 0:02:12]} 34. f3 {[%emt 0:00:07]} Rc8 {[%emt 0:02:50]} 35. Rba1 {[%emt 0:03:18]} Rcc5 {[%emt 0:00:17]} 36. b3 {[%emt 0:01:55]} cxb3+ {[%emt 0:03:06]} 37. Nxb3 {[%emt 0:00:07]} Rc6 {[%emt 0:00:32]} 38. Rxa5 {[%emt 0:01:07]} Ke6 {[%emt 0:00:07]} 39. Ra6 {[%emt 0:02:12]} Rbb6 {[%emt 0:01:40]} 40. Rxb6 {[%emt 0:04:31]} Rxb6 {[%emt 0:00:01]} 41. Nd2 {[%emt 0:31:10]} Kf5 {[%emt 0:30:35]} 42. Ra4 {[%emt 0:01:53]} h5 {[%emt 0:01:12]} 43. g4+ {[%emt 0:01:41]} Ke6 {[%emt 0:00:40]} 44. gxh5 {[%emt 0:00:42]} Rb8 {[%emt 0:01:03]} 45. Ra6 {[%emt 0:00:40]} Ke7 {[%emt 0:00:12]} 46. Ne4 {[%emt 0:00:32]} Nf5 {[%emt 0:00:54]} 47. Ra7+ {[%emt 0:00:36]} Kf8 1-0

[Event "ESP-chT Div I 2018"]
[Site "Linares"]
[Date "2018.08.11"]
[Round "6"]
[White "Aranaz Murillo, Amalia"]
[Black "Gonzalez Guedes, Iyan"]
[Result "1-0"]
[ECO "E68"]
[WhiteElo "2227"]
[BlackElo "1925"]
[Annotator "NA"]
[PlyCount "59"]
[EventDate "2018.08.06"]
[EventType "team-tourn"]
[EventCountry "ESP"]
[SourceTitle "playchess.com"]
[Source "ChessBase"]
[SourceQuality "1"]
[TimeControl "40/5400+30:1800+30"]

1. Nf3 {[%emt 0:00:00]} Nf6 {[%emt 0:00:00]} 2. c4 {[%emt 0:00:00]} g6 {[%emt 0:00:00]} 3. g3 {[%emt 0:00:00]} Bg7 {[%emt 0:00:00]} 4. Bg2 {[%emt 0:00:00]} O-O {[%emt 0:00:00]} 5. O-O {[%emt 0:00:13]} d6 {[%emt 0:00:00]} 6. d4 {[%emt 0:00:36]} Nbd7 {[%emt 0:00:00]} 7. Nc3 {[%emt 0:00:47]} e5 {[%emt 0:00:07]} 8. e4 {[%emt 0:00:08]} exd4 {[%emt 0:00:06]} 9. Nxd4 {[%emt 0:00:07]} Re8 {[%emt 0:00:16]} 10. h3 {[%emt 0:01:23]} Ne5 {[%emt 0:00:38]} 11. b3 {[%emt 0:00:29]} a6 {[%emt 0:00:04]} 12. Be3 {[%emt 0:01:52]} Rb8 {[%emt 0:00:20]} 13. a4 {[%emt 0:02:20]} Bd7 {[%emt 0:07:38]} 14. Ra2 {[%emt 0:07:17]} c5 {[%emt 0:14:12]} 15. Nde2 {[%emt 0:00:09]} b5 {[%emt 0:05:31]} 16. f4 {[%emt 0:08:18]} Nc6 {[%emt 0:00:47]} 17. axb5 {[%emt 0:00:21]} axb5 {[%emt 0:01:51]} 18. cxb5 {[%emt 0:00:28]} Nb4 {[%emt 0:04:38]} 19. Rd2 {[%emt 0:00:31]} Bxb5 {[%emt 0:09:30]} 20. Rxd6 {[%emt 0:03:43]} Bxe2 {[%emt 0:03:19]} 21. Rxd8 {[%emt 0:09:51]} Bxd1 {[%emt 0:00:04]} 22. Rxb8 {[%emt 0:00:17]} Rxb8 {[%emt 0:00:07]} 23. Rxd1 {[%emt 0:00:07]} Ng4 {[%emt 0:05:13]} 24. hxg4 {[%emt 0:01:50]} Bxc3 {[%emt 0:00:05]} 25. Bxc5 {[%emt 0:00:09]} Na6 {[%emt 0:07:11]} 26. Be7 {[%emt 0:02:43]} f6 {[%emt 0:08:57]} 27. Bf1 {[%emt 0:05:32]} Re8 {[%emt 0:10:58]} 28. Bc4+ {[%emt 0:04:27]} Kg7 {[%emt 0:00:15]} 29. Rd7 {[%emt 0:00:26]} Nb8 {[%emt 0:04:30]} 30. Bxf6+ {[%emt 0:00:33]} 1-0

[Event "ESP-chT Div I 2018"]
[Site "Linares"]
[Date "2018.08.11"]
[Round "6"]
[White "Vazquez Torres, Adrian"]
[Black "Gutierrez Olivares, Daniel"]
[Result "0-1"]
[ECO "A10"]
[WhiteElo "2174"]
[BlackElo "2297"]
[Annotator "NA"]
[PlyCount "72"]
[EventDate "2018.08.06"]
[EventType "team-tourn"]
[EventCountry "ESP"]
[SourceTitle "playchess.com"]
[Source "ChessBase"]
[SourceQuality "1"]
[TimeControl "40/5400+30:1800+30"]

1. c4 {[%emt 0:00:00]} d6 {[%emt 0:01:01]} 2. d4 {[%emt 0:00:02]} f5 {[%emt 0:00:40]} 3. Nf3 {[%emt 0:00:32]} Nf6 {[%emt 0:00:41]} 4. e3 {[%emt 0:02:39]} g6 {[%emt 0:01:30]} 5. b3 {[%emt 0:00:59]} Bg7 {[%emt 0:01:50]} 6. Bb2 {[%emt 0:00:06]} O-O {[%emt 0:01:45]} 7. Nbd2 {[%emt 0:01:28]} Qe8 {[%emt 0:03:28]} 8. Qc2 {[%emt 0:03:49]} Nc6 {[%emt 0:01:06]} 9. d5 {[%emt 0:13:29]} Nb4 {[%emt 0:00:49]} 10. Qc1 {[%emt 0:02:03]} a5 {[%emt 0:01:51]} 11. a3 {[%emt 0:02:52]} Na6 {[%emt 0:00:16]} 12. Bc3 {[%emt 0:09:29]} Nc5 {[%emt 0:02:51]} 13. Qb2 {[%emt 0:00:07]} c6 {[%emt 0:01:18]} 14. Be2 {[%emt 0:09:21]} Bh6 {[%emt 0:02:57]} 15. dxc6 {[%emt 0:10:40]} bxc6 {[%emt 0:01:23]} 16. Qc2 {[%emt 0:00:05]} Nce4 {[%emt 0:05:43]} 17. Nxe4 {[%emt 0:01:07]} Nxe4 {[%emt 0:05:43]} 18. Bb2 {[%emt 0:00:45]} g5 {[%emt 0:01:53]} 19. h4 {[%emt 0:10:05]} g4 {[%emt 0:01:44]} 20. Ng5 {[%emt 0:00:06]} Nf6 {[%emt 0:03:48]} 21. f3 {[%emt 0:05:10]} Qg6 22. O-O-O {[%emt 0:00:19]} Rb8 {[%emt 0:11:19]} 23. fxg4 {[%emt 0:09:56]} Nxg4 {[%emt 0:01:01]} 24. Bxg4 {[%emt 0:00:04]} fxg4 {[%emt 0:00:10]} 25. Rdf1 {[%emt 0:00:58]} Bf5 {[%emt 0:03:02]} 26. Qc3 {[%emt 0:00:01]} Bg7 {[%emt 0:02:05]} 27. Qxg7+ {[%emt 0:00:18]} Qxg7 {[%emt 0:00:02]} 28. Bxg7 {[%emt 0:00:09]} Kxg7 {[%emt 0:00:06]} 29. e4 {[%emt 0:01:06]} Bd7 {[%emt 0:00:22]} 30. e5 {[%emt 0:00:41]} Bf5 {[%emt 0:02:20]} 31. exd6 {[%emt 0:00:55]} exd6 {[%emt 0:00:20]} 32. Re1 {[%emt 0:02:19]} Rxb3 {[%emt 0:02:07]} 33. Rhf1 {[%emt 0:00:55]} Rc3+ {[%emt 0:05:04]} 34. Kb2 {[%emt 0:00:47]} Rc2+ {[%emt 0:00:22]} 35. Ka1 {[%emt 0:00:11]} Rxg2 {[%emt 0:05:12]} 36. Re7+ {[%emt 0:00:00]} Kg8 {[%emt 0:00:32]} 0-1

[Event "ESP-chT Div I 2018"]
[Site "Linares"]
[Date "2018.08.11"]
[Round "6"]
[White "Vega Gutierrez, Belinda Vidina"]
[Black "Rodrigo Yanguas, Maria"]
[Result "1-0"]
[ECO "C03"]
[WhiteElo "2165"]
[BlackElo "2062"]
[Annotator "NA"]
[PlyCount "123"]
[EventDate "2018.08.06"]
[EventType "team-tourn"]
[EventCountry "ESP"]
[SourceTitle "playchess.com"]
[Source "ChessBase"]
[SourceQuality "1"]
[TimeControl "40/5400+30:1800+30"]

1. e4 {[%emt 0:00:00]} e6 {[%emt 0:00:00]} 2. d4 {[%emt 0:00:00]} d5 {[%emt 0:00:00]} 3. Nd2 {[%emt 0:00:02]} Be7 {[%emt 0:00:09]} 4. Ngf3 {[%emt 0:00:16]} Nf6 {[%emt 0:00:30]} 5. e5 {[%emt 0:00:14]} Nfd7 {[%emt 0:00:18]} 6. Bd3 {[%emt 0:00:17]} c5 {[%emt 0:00:20]} 7. O-O {[%emt 0:00:18]} Nc6 {[%emt 0:03:37]} 8. Re1 {[%emt 0:00:09]} cxd4 {[%emt 0:06:44]} 9. Nb3 {[%emt 0:00:31]} Qb6 {[%emt 0:03:14]} 10. a4 {[%emt 0:00:33]} a5 {[%emt 0:03:19]} 11. Bf4 {[%emt 0:20:34]} Nc5 {[%emt 0:10:25]} 12. Nfxd4 {[%emt 0:07:57]} Nb4 {[%emt 0:04:45]} 13. Bb5+ {[%emt 0:19:55]} Bd7 {[%emt 0:01:17]} 14. Be3 {[%emt 0:01:43]} Qc7 {[%emt 0:17:21]} 15. c3 {[%emt 0:13:19]} Nxb3 {[%emt 0:01:40]} 16. Nxb3 {[%emt 0:04:36]} Na6 {[%emt 0:02:40]} 17. Qd4 {[%emt 0:00:46]} Bd8 {[%emt 0:14:27]} 18. f4 {[%emt 0:01:09]} O-O {[%emt 0:00:57]} 19. Rf1 {[%emt 0:13:51]} Nb8 {[%emt 0:02:06]} 20. Rf3 {[%emt 0:01:16]} Nc6 {[%emt 0:01:38]} 21. Qd2 {[%emt 0:00:56]} Ne7 {[%emt 0:00:20]} 22. Bd3 {[%emt 0:00:20]} Ng6 {[%emt 0:07:25]} 23. Rh3 {[%emt 0:04:23]} f5 {[%emt 0:01:29]} 24. Qe2 {[%emt 0:01:10]} Be8 {[%emt 0:01:37]} 25. Nd4 {[%emt 0:01:17]} Qf7 {[%emt 0:01:44]} 26. Nf3 {[%emt 0:00:52]} Rc8 {[%emt 0:02:15]} 27. c4 {[%emt 0:00:12]} dxc4 {[%emt 0:01:00]} 28. Bxc4 {[%emt 0:00:09]} Bc6 {[%emt 0:00:45]} 29. Nd4 {[%emt 0:00:11]} Bd5 {[%emt 0:00:35]} 30. Bxd5 {[%emt 0:00:25]} exd5 {[%emt 0:00:01]} 31. Qh5 {[%emt 0:04:18]} h6 {[%emt 0:00:22]} 32. Rg3 {[%emt 0:00:40]} Kh7 {[%emt 0:02:24]} 33. Qe2 {[%emt 0:00:37]} Rc4 {[%emt 0:00:42]} 34. b3 {[%emt 0:00:12]} Rc3 {[%emt 0:01:04]} 35. Qd2 {[%emt 0:00:08]} Rc8 {[%emt 0:00:22]} 36. Nb5 {[%emt 0:00:54]} Be7 {[%emt 0:03:09]} 37. Qxa5 {[%emt 0:00:10]} Bc5 {[%emt 0:00:10]} 38. Bxc5 {[%emt 0:00:48]} Rxc5 {[%emt 0:00:06]} 39. Qd2 {[%emt 0:00:09]} Qe7 {[%emt 0:01:25]} 40. Nd4 {[%emt 0:01:38]} Qh4 {[%emt 0:01:26]} 41. Rf3 {[%emt 0:30:04]} Qe7 {[%emt 0:31:29]} 42. g3 {[%emt 0:01:33]} Qd7 {[%emt 0:00:36]} 43. Rd1 {[%emt 0:00:24]} Rfc8 {[%emt 0:00:17]} 44. Rd3 {[%emt 0:00:39]} Ne7 {[%emt 0:00:30]} 45. Qe3 {[%emt 0:00:46]} Qe8 {[%emt 0:00:33]} 46. Qf3 {[%emt 0:00:49]} Kh8 {[%emt 0:01:09]} 47. Nb5 {[%emt 0:00:32]} Qg6 {[%emt 0:01:17]} 48. Kh1 {[%emt 0:01:00]} Rc2 {[%emt 0:00:19]} 49. Rc3 {[%emt 0:00:56]} Qb6 {[%emt 0:03:09]} 50. Rxc2 {[%emt 0:00:25]} Rxc2 {[%emt 0:00:02]} 51. Nd4 {[%emt 0:00:10]} Ra2 {[%emt 0:00:45]} 52. Qc3 {[%emt 0:00:41]} Qg6 {[%emt 0:00:20]} 53. Rd2 {[%emt 0:00:24]} Rxd2 {[%emt 0:01:03]} 54. Qxd2 {[%emt 0:00:01]} h5 {[%emt 0:00:26]} 55. Qb4 {[%emt 0:00:51]} Nc6 {[%emt 0:01:07]} 56. Qf8+ {[%emt 0:00:18]} Kh7 {[%emt 0:00:00]} 57. Nf3 {[%emt 0:00:40]} Qg4 {[%emt 0:00:50]} 58. Kg2 {[%emt 0:01:05]} h4 {[%emt 0:00:20]} 59. Ng5+ {[%emt 0:00:30]} Kg6 {[%emt 0:00:54]} 60. Qe8+ {[%emt 0:00:28]} Kh6 {[%emt 0:00:08]} 61. Qh8+ {[%emt 0:00:23]} Kg6 {[%emt 0:00:01]} 62. Qh7# {[%emt 0:00:08]} 1-0

[Event "ESP-chT Div I 2018"]
[Site "Linares"]
[Date "2018.08.11"]
[Round "6"]
[White "Prado Acebo, Ines"]
[Black "Garcia Molina, Jose"]
[Result "1-0"]
[ECO "A58"]
[WhiteElo "2084"]
[BlackElo "1969"]
[Annotator "NA"]
[PlyCount "87"]
[EventDate "2018.08.06"]
[EventType "team-tourn"]
[EventCountry "ESP"]
[SourceTitle "playchess.com"]
[Source "ChessBase"]
[SourceQuality "1"]
[TimeControl "40/5400+30:1800+30"]

1. d4 {[%emt 0:00:00]} Nf6 {[%emt 0:00:00]} 2. c4 {[%emt 0:00:00]} c5 {[%emt 0:00:00]} 3. d5 {[%emt 0:00:00]} b5 {[%emt 0:00:00]} 4. cxb5 {[%emt 0:00:19]} a6 {[%emt 0:00:04]} 5. bxa6 {[%emt 0:00:16]} g6 {[%emt 0:00:14]} 6. Nc3 {[%emt 0:00:18]} Bg7 {[%emt 0:00:17]} 7. e4 {[%emt 0:01:33]} O-O {[%emt 0:00:34]} 8. Be2 {[%emt 0:06:07]} d6 {[%emt 0:10:06]} 9. Nf3 {[%emt 0:03:14]} Qa5 {[%emt 0:02:41]} 10. a7 {[%emt 0:07:06]} Nbd7 {[%emt 0:05:55]} 11. O-O {[%emt 0:05:27]} Ba6 {[%emt 0:04:08]} 12. Re1 {[%emt 0:09:30]} Ng4 {[%emt 0:08:00]} 13. Bg5 {[%emt 0:06:42]} Rfe8 {[%emt 0:07:54]} 14. Qc2 {[%emt 0:04:06]} Nge5 {[%emt 0:06:15]} 15. Nd2 {[%emt 0:04:00]} c4 {[%emt 0:09:12]} 16. Reb1 {[%emt 0:13:20]} h6 {[%emt 0:16:09]} 17. Be3 {[%emt 0:05:18]} Qc7 {[%emt 0:09:28]} 18. Qa4 {[%emt 0:16:12]} Bb7 {[%emt 0:07:34]} 19. Nb5 {[%emt 0:01:34]} Nc5 {[%emt 0:02:28]} 20. Qc2 {[%emt 0:03:23]} Qd7 {[%emt 0:03:27]} 21. a4 {[%emt 0:01:17]} Rec8 {[%emt 0:01:46]} 22. Nxc4 {[%emt 0:01:55]} Nxc4 {[%emt 0:01:04]} 23. Bxc4 {[%emt 0:00:27]} f5 {[%emt 0:01:39]} 24. exf5 {[%emt 0:00:55]} gxf5 {[%emt 0:00:01]} 25. Ra3 {[%emt 0:00:55]} Ne4 {[%emt 0:01:25]} 26. Qe2 {[%emt 0:00:54]} Qe8 {[%emt 0:01:27]} 27. a5 {[%emt 0:01:45]} Qf7 {[%emt 0:00:31]} 28. Qd3 {[%emt 0:01:36]} Rxc4 {[%emt 0:01:03]} 29. Qxc4 {[%emt 0:00:12]} Bxd5 {[%emt 0:00:01]} 30. Qc1 {[%emt 0:01:59]} Bc4 {[%emt 0:01:04]} 31. Nc7 {[%emt 0:00:23]} Rc8 {[%emt 0:00:10]} 32. a8=Q {[%emt 0:00:12]} Rxa8 {[%emt 0:00:02]} 33. Nxa8 {[%emt 0:00:08]} e5 {[%emt 0:00:01]} 34. Nb6 {[%emt 0:00:24]} Ba6 {[%emt 0:00:18]} 35. f3 {[%emt 0:00:42]} Nf6 {[%emt 0:01:04]} 36. Bxh6 {[%emt 0:00:25]} Qg6 {[%emt 0:00:50]} 37. Bxg7 {[%emt 0:00:08]} Qxg7 {[%emt 0:00:23]} 38. Rc3 {[%emt 0:00:27]} Qg6 {[%emt 0:00:37]} 39. Rc8+ {[%emt 0:00:38]} Bxc8 {[%emt 0:00:41]} 40. Qxc8+ {[%emt 0:00:05]} Kh7 {[%emt 0:00:07]} 41. Rc1 {[%emt 0:30:20]} Qg5 {[%emt 0:30:23]} 42. a6 {[%emt 0:01:01]} Qe3+ {[%emt 0:00:11]} 43. Kh1 {[%emt 0:00:02]} Qxb6 {[%emt 0:00:15]} 44. Qc7+ {[%emt 0:00:06]} 1-0